fUSD/lending_fUSD_20260205
["ID","MTS","AMOUNT","RATE_DAILY","PERIOD"]
[404590742,1770317450526,-151.0,0.000249,7]
[404590743,1770317450536,-400.0,0.000249,9]
[404590744,1770317450546,-151.0,0.000249,7]
[404590745,1770317450555,-151.0,0.000249,7]
[404590746,1770317450564,-151.0,0.000249,7]
[404590747,1770317450574,-151.0,0.000249,7]
[404590748,1770317450586,-151.0,0.000249,7]
[404590749,1770317450597,-151.0,0.000249,7]
[404590750,1770317450609,-1514.793586,0.000249,7]
[404590751,1770317450620,-1514.793586,0.000249,7]
[404590752,1770317450630,-1514.793586,0.000249,7]
[404590753,1770317450641,-1514.793586,0.000249,7]
[404590754,1770317450651,-81977.5522606,0.000249,2]
[404590755,1770317450661,-246.341337,0.000249,7]
[404590756,1770317450671,-308.806092,0.000249,7]
[404590757,1770317450680,-308.806092,0.000249,7]
[404590758,1770317450692,-308.806092,0.000249,7]
[404590759,1770317450701,-308.806092,0.000249,7]
[404590760,1770317450711,-401.19111454,0.00024955,2]
[404590761,1770317450720,-644.79446246,0.00024958,2]
[404590762,1770317450732,-301.1433787,0.00024961,2]
[404590763,1770317450742,-1113.21456017,0.00025,2]
[404590764,1770317450754,-207.39311633,0.00025,2]
[404590765,1770317450764,-1783.73548534,0.00025,2]
[404590766,1770317450773,-515.11649963,0.00025,2]
[404590767,1770317450783,-540.0,0.00025,2]
[404590768,1770317450795,-610.5578396,0.00025,2]
[404590769,1770317450805,-3042.56537062,0.00025,2]
[404590770,1770317450815,-7121.49292135,0.00025,2]
[404590771,1770317450825,-1063.99540326,0.00025,2]
[404590772,1770317450841,-167.22776996,0.00025,2]
[404590773,1770317450850,-170.8974883,0.00025,5]
[404590774,1770317450859,-531.0,0.00025,5]
[404590775,1770317450869,-1320.86520044,0.00025,4]
[404590776,1770317450881,-160.0,0.00025,3]
[404590777,1770317450892,-295.97,0.00025,2]
[404590778,1770317450902,-150.0,0.00025,2]
[404590779,1770317450911,-150.0,0.00025,2]
[404590780,1770317450922,-150.0,0.00025,2]
[404590781,1770317450932,-150.0,0.00025,2]
[404590782,1770317450941,-150.0,0.00025,2]
[404590783,1770317450963,-150.0,0.00025,2]
[404590784,1770317450984,-150.0,0.00025,2]
[404590785,1770317451006,-150.0,0.00025,2]
[404590786,1770317451027,-150.0,0.00025,2]
[404590787,1770317451050,-150.0,0.00025,2]
[404590788,1770317451072,-150.0,0.00025,2]
[404590789,1770317451109,-150.0,0.00025,2]
[404590790,1770317451130,-150.0,0.00025,2]
[404590791,1770317451140,-151.0,0.00025,2]
[404590792,1770317451150,-150.0,0.00025,2]
[404590793,1770317451160,-200.0,0.00025,5]
[404590794,1770317451169,-400.0,0.00025,2]
[404590795,1770317451180,-150.0,0.00025,17]
[404590796,1770317451189,-160.0,0.00025,7]
[404590797,1770317451199,-160.0,0.00025,7]
[404590798,1770317451209,-160.0,0.00025,30]
[404590799,1770317451218,-500.0,0.00025,2]
[404590800,1770317451227,-159.0,0.00025,3]
[404590801,1770317451237,-200.0,0.00025159,2]
[404590802,1770317451247,-506.0,0.00025197,8]
[404590803,1770317451257,-500.0,0.00025234,2]
[404590804,1770317451266,-156688.5,0.000253,2]
[404590805,1770317451276,-49500.53160107,0.0002539,2]
[404590806,1770317451285,-6248.25,0.00025786,2]
[404590807,1770317451294,-152.0,0.000258,5]
[404590808,1770317451304,-271.34725173,0.000258,5]
[404590809,1770317451313,-500.0,0.00025834,2]
[404590810,1770317451323,-169.2,0.000259,14]
[404590811,1770317451334,-600.56618617,0.0002599,2]
[404590812,1770317451346,-175.0,0.00025999,2]
[404590813,1770317451356,-4520.31332254,0.00026,2]
[404590814,1770317451367,-216.36574262,0.00026,2]
[404590815,1770317451376,-240.9,0.00026,2]
[404590816,1770317451386,-150.0,0.00026,20]
[404590817,1770317451395,-200.0,0.00026,5]
[404590818,1770317451405,-240.9,0.00026,2]
[404590819,1770317451415,-3348.46430186,0.00026039,2]
[404590820,1770317451425,-506.0,0.00026096,9]
[404590821,1770317451435,-2136.41,0.000261,7]
[404590822,1770317451444,-500.0,0.00026234,2]
[404590823,1770317451454,-1430.0,0.00026281,2]
[404590824,1770317451464,-25745.40801099,0.000263,7]
[404590825,1770317451474,-416.03518578,0.00026324,2]
[404590826,1770317451483,-509.5,0.00026391,10]
[404590827,1770317451493,-27459.94153803,0.000264,2]
[404590828,1770317451502,-151.0,0.000264,7]
[404590829,1770317451512,-151.0,0.000265,2]
[404590830,1770317451521,-188.810202,0.00026592,7]
[404590831,1770317451530,-359.6960638,0.00026667,30]
[404590832,1770317451540,-500.0,0.00026834,2]
[404590833,1770317451550,-500.0,0.00026843,2]
[404590834,1770317451560,-506.0,0.00026994,10]
[404590835,1770317451570,-250.0,0.00027,2]
[404590836,1770317451580,-1034.02011102,0.00027,2]
[404590837,1770317451594,-530.0,0.00027,2]
[404590838,1770317451607,-183.3675,0.00027,2]
[404590839,1770317451617,-150.0,0.00027,23]
[404590840,1770317451626,-344.72304858,0.00027,5]
[404590841,1770317451636,-550.0,0.00027,2]
[404590842,1770317451647,-2000.0,0.000271,2]
[404590843,1770317451656,-151.0,0.00027123,7]
[404590844,1770317451665,-151.0,0.00027123,7]
[404590845,1770317451675,-151.0,0.00027123,7]
[404590846,1770317451685,-3686.58,0.00027123,2]
[404590847,1770317451696,-150.0,0.00027123,2]
[404590848,1770317451706,-1411.0,0.00027175,2]
[404590849,1770317451715,-3482.0,0.00027175,2]
[404590850,1770317451725,-1335.0,0.00027175,2]
[404590851,1770317451735,-616.0,0.00027175,2]
[404590852,1770317451744,-1271.0,0.00027175,2]
[404590853,1770317451754,-412.0,0.00027175,2]
[404590854,1770317451764,-6581.0,0.00027175,2]
[404590855,1770317451774,-3254.0,0.00027175,2]
[404590856,1770317451783,-500.0,0.00027234,2]
[404590857,1770317451793,-155.22993896,0.00027271,7]
[404590858,1770317451803,-155.22993896,0.00027271,7]
[404590859,1770317451813,-2136.41,0.000273,7]
[404590860,1770317451823,-150.0,0.00027369,2]
[404590861,1770317451835,-1137.46153846,0.0002737,2]
[404590862,1770317451846,-948.23076923,0.0002737,2]
[404590863,1770317451855,-533.76923077,0.0002737,2]
[404590864,1770317451865,-535.15384615,0.0002737,2]
[404590865,1770317451874,-824.53846154,0.0002737,2]
[404590866,1770317451883,-1134.23076923,0.0002737,2]
[404590867,1770317451893,-1153.84615385,0.0002737,2]
[404590868,1770317451903,-631.38461538,0.0002737,2]
[404590869,1770317451912,-541.84615385,0.0002737,2]
[404590870,1770317451921,-582.46153846,0.0002737,2]
[404590871,1770317451931,-870.69230769,0.0002737,2]
[404590872,1770317451940,-815.30769231,0.0002737,2]
[404590873,1770317451949,-976.84615385,0.0002737,2]
[404590874,1770317451959,-818.53846154,0.0002737,2]
[404590875,1770317451968,-746.07692308,0.0002737,2]
[404590876,1770317451978,-957.23076923,0.0002737,2]
[404590877,1770317451988,-993.46153846,0.0002737,2]
[404590878,1770317451997,-761.30769231,0.0002737,2]
[404590879,1770317452007,-558.0,0.0002737,2]
[404590880,1770317452017,-459.74556213,0.0002737,2]
[404590881,1770317452027,-513.92307692,0.0002737,2]
[404590882,1770317452037,-502.3737911,0.0002737,2]
[404590883,1770317452047,-386.44137777,0.0002737,2]
[404590884,1770317452057,-297.26259828,0.0002737,2]
[404590885,1770317452067,-228.66353714,0.0002737,2]
[404590886,1770317452076,-175.89502857,0.0002737,2]
[404590887,1770317452089,-151.0,0.0002737,7]
[404590888,1770317452100,-151.0,0.0002737,7]
[404590889,1770317452110,-151.0,0.0002737,7]
[404590890,1770317452120,-4109.99735574,0.0002739,2]
[404590891,1770317452130,-8118.31525659,0.0002739,2]
[404590892,1770317452140,-4415.49385753,0.0002739,7]
[404590893,1770317452150,-201.01188095,0.0002739,120]
[404590894,1770317452159,-220.0,0.00027397,2]
[404590895,1770317452169,-220.0,0.00027397,2]
[404590896,1770317452178,-241.31611462,0.00027397,2]
[404590897,1770317452188,-500.0,0.00027397,120]
[404590898,1770317452197,-1533.09,0.00027397,2]
[404590899,1770317452206,-1004.65,0.00027397,30]
[404590900,1770317452215,-519.26,0.00027397,2]
[404590901,1770317452225,-300.0,0.00027397,2]
[404590902,1770317452234,-750.0,0.00027397,20]
[404590903,1770317452243,-624.611061,0.00027397,7]
[404590904,1770317452252,-624.611061,0.00027397,7]
[404590905,1770317452260,-624.611061,0.00027397,7]
[404590906,1770317452269,-624.611061,0.00027397,7]
[404590907,1770317452279,-624.611061,0.00027397,7]
[404590908,1770317452287,-624.611061,0.00027397,7]
[404590909,1770317452296,-624.611061,0.00027397,7]
[404590910,1770317452305,-624.611061,0.00027397,7]
[404590911,1770317452314,-624.611061,0.00027397,7]
[404590912,1770317452323,-624.611061,0.00027397,7]
[404590913,1770317452334,-624.611061,0.00027397,7]
[404590914,1770317452344,-624.611061,0.00027397,7]
[404590915,1770317452354,-151.0,0.00027397,7]
[404590916,1770317452364,-153.090444,0.00027397,7]
[404590917,1770317452373,-151.0,0.00027397,7]
[404590918,1770317452383,-151.0,0.00027397,7]
[404590919,1770317452393,-440.961977,0.00027397,7]
[404590920,1770317452402,-440.961977,0.00027397,7]
[404590921,1770317452412,-440.961977,0.00027397,7]
[404590922,1770317452422,-440.961977,0.00027397,7]
[404590923,1770317452431,-440.961977,0.00027397,7]
[404590924,1770317452441,-440.961977,0.00027397,7]
[404590925,1770317452450,-440.961977,0.00027397,7]
[404590926,1770317452459,-440.961977,0.00027397,7]
[404590927,1770317452468,-211.29173544,0.00027397,4]
[404590928,1770317452478,-150.0,0.00027397,5]
[404590929,1770317452487,-150.0,0.00027397,5]
[404590930,1770317452496,-519.96930966,0.00027397,5]
[404590931,1770317452507,-159.31635265,0.00027397,5]
[404590932,1770317452517,-250.0,0.000274,120]
[404590933,1770317452527,-151.0,0.000274,7]
[404590934,1770317452536,-151.0,0.000274,7]
[404590935,1770317452546,-213.136994,0.000274,7]
[404590936,1770317452556,-151.0,0.000274,7]
[404590937,1770317452565,-151.0,0.000274,7]
[404590938,1770317452575,-151.0,0.000274,7]
[404590939,1770317452586,-151.0,0.000274,7]
[404590940,1770317452596,-440.961977,0.000274,7]
[404590941,1770317452606,-440.961977,0.000274,7]
[404590942,1770317452617,-440.961977,0.000274,7]
[404590943,1770317452627,-440.961977,0.000274,7]
[404590944,1770317452636,-265.027392,0.000274,7]
[404590945,1770317452646,-1514.793586,0.000274,7]
[404590946,1770317452657,-1514.793586,0.000274,7]
[404590947,1770317452667,-1514.793586,0.000274,7]
[404590948,1770317452677,-1514.793586,0.000274,7]
[404590949,1770317452687,-201.20175624,0.000275,2]
[404590950,1770317452698,-549.63744045,0.000275,2]
[404590951,1770317452708,-2000.0,0.000275,30]
[404590952,1770317452718,-871.86,0.000275,7]
[404590953,1770317452728,-2532.078807,0.00027617,2]
[404590954,1770317452738,-431.42848765,0.00027693,2]
[404590955,1770317452749,-668.65185757,0.00027697,2]
[404590956,1770317452759,-500.0,0.00027834,2]
[404590957,1770317452768,-506.0,0.00027893,11]
[404590958,1770317452778,-250.0,0.00027945,5]
[404590959,1770317452787,-250.0,0.00027945,5]
[404590960,1770317452798,-71308.72422607,0.00028,2]
[404590961,1770317452811,-50848.40772885,0.00028,2]
[404590962,1770317452831,-160.0,0.00028,2]
[404590963,1770317452855,-151.0,0.00028,2]
[404590964,1770317452867,-150.0,0.00028,26]
[404590965,1770317452877,-250.0,0.00028,120]
[404590966,1770317452887,-162.355824,0.00028,7]
[404590967,1770317453050,-173.956686,0.00028,7]
[404590968,1770317453062,-256.69742234,0.00028,7]
[404590969,1770317453073,-151.0,0.00028,7]
[404590970,1770317453083,-151.0,0.00028,7]
[404590971,1770317453098,-151.0,0.00028,7]
[404590972,1770317453111,-160.0,0.00028,7]
[404590973,1770317453122,-160.0,0.00028,7]
[404590974,1770317453131,-156688.5,0.00028,2]
[404590975,1770317453141,-200.0,0.000284,120]
[404590976,1770317453151,-350.0,0.00028493,5]
[404590977,1770317453161,-350.0,0.00028493,5]
[404590978,1770317453170,-152.0,0.0002856,3]
[404590979,1770317453180,-152.0,0.0002856,5]
[404590980,1770317453190,-564.9831497,0.00028748,2]
[404590981,1770317453201,-151.0,0.00028764,7]
[404590982,1770317453210,-151.0,0.00028767,7]
[404590983,1770317453221,-151.0,0.00028767,7]
[404590984,1770317453233,-151.0,0.00028767,7]
[404590985,1770317453245,-289.082365,0.00028767,7]
[404590986,1770317453256,-151.0,0.00028767,7]
[404590987,1770317453266,-173.515295,0.00028767,7]
[404590988,1770317453276,-624.611061,0.00028767,7]
[404590989,1770317453286,-624.611061,0.00028767,7]
[404590990,1770317453296,-624.611061,0.00028767,7]
[404590991,1770317453306,-624.611061,0.00028767,7]
[404590992,1770317453315,-151.0,0.00028767,7]
[404590993,1770317453325,-151.0,0.00028767,7]
[404590994,1770317453334,-151.0,0.00028767,7]
[404590995,1770317453347,-151.0,0.00028767,7]
[404590996,1770317453356,-151.0,0.00028767,7]
[404590997,1770317453365,-151.0,0.00028767,7]
[404590998,1770317453375,-151.0,0.00028767,7]
[404590999,1770317453384,-151.0,0.00028767,7]
[404591000,1770317453394,-236.746794,0.00028767,7]
[404591001,1770317453403,-440.961977,0.00028767,7]
[404591002,1770317453414,-440.961977,0.00028767,7]
[404591003,1770317453424,-440.961977,0.00028767,7]
[404591004,1770317453434,-440.961977,0.00028767,7]
[404591005,1770317453444,-1514.793586,0.00028767,7]
[404591006,1770317453453,-1514.793586,0.00028767,7]
[404591007,1770317453464,-1514.793586,0.00028767,7]
[404591008,1770317453474,-1514.793586,0.00028767,7]
[404591009,1770317453484,-213.82451185,0.00028767,2]
[404591010,1770317453494,-308.806092,0.00028767,7]
[404591011,1770317453504,-308.806092,0.00028767,7]
[404591012,1770317453514,-308.806092,0.00028767,7]
[404591013,1770317453523,-308.806092,0.00028767,7]
[404591014,1770317453534,-151.0,0.00028767,7]
[404591015,1770317453544,-151.0,0.00028767,7]
[404591016,1770317453561,-151.0,0.00028767,7]
[404591017,1770317453576,-808688.47103443,0.00028767,120]
[404591018,1770317453995,-959.07596201,0.00028767,120]
[404591019,1770317454008,-569.7664205,0.00028767,120]
[404591020,1770317454022,-505.57387787,0.00028767,120]
[404591021,1770317454037,-476.8733346,0.00028767,120]
[404591022,1770317454848,500.0,0.00013769,2]
[404591023,1770317455171,-659.27,0.00016848,2]
[404591024,1770317455183,-155.73,0.00016848,2]
[404591025,1770317455193,-284.0,0.0001971,2]
[404591026,1770317455202,-220.0,0.0001975,2]
[404591027,1770317455212,-6806.24912416,0.00028767,120]
[404591028,1770317455224,-923.52172512,0.00028767,120]
[404591029,1770317455240,-688.7483796,0.00028767,120]
[404591030,1770317455252,-5444.19705982,0.00028767,120]
[404591031,1770317455264,-30037.81132953,0.00028767,120]
[404591032,1770317455526,-1229.78115562,0.00028767,120]
[404591033,1770317455537,-2304.42325273,0.00028767,120]
[404591034,1770317455548,-927.77,0.00028767,120]
[404591035,1770317455559,-1743.75217009,0.00028767,120]
[404591036,1770317455569,-212292.04120646,0.00028767,120]
[404591037,1770317455585,-640.73017431,0.00028767,120]
[404591038,1770317455603,-325.1172002,0.00028767,120]
[404591039,1770317455621,-914.91031928,0.00028767,120]
[404591040,1770317455632,-865.40528454,0.00028767,120]
[404591041,1770317455644,-10821.04317712,0.00028767,120]
[404591042,1770317455655,-452.028,0.00028767,120]
[404591043,1770317455666,-2893.06338455,0.00028767,120]
[404591044,1770317455875,-1983.15328756,0.00028767,120]
[404591045,1770317455887,-6125.26499967,0.00028767,120]
[404591046,1770317463695,10000.01,0.00013771,2]
[404591047,1770317463721,10000.01,0.00013771,2]
[404591048,1770317463751,10000.01,0.00013771,2]
[404591049,1770317463780,917409.6151943,0.00013771,2]
[404591051,1770317470784,-9310.2603351,0.00013771,2]
[404591052,1770317470881,-10000.01,0.00013771,2]
[404591053,1770317471002,-10000.01,0.00013771,2]
[404591067,1770317493275,3351.379,0.00013496,2]
[404591068,1770317493323,311.245,0.00013496,2]
[404591069,1770317515343,6337.386,0.00013671,2]
[404591070,1770317515366,1536.91807594,0.00013671,2]
[404591082,1770317710372,359.6960638,0.0002,30]
[404591083,1770317780008,-181.49,0.000136,2]
[404591084,1770317810490,-200.0,0.000136,4]
[404591085,1770317810519,-176.80933523,0.00013621,2]
[404591086,1770317810758,-7709.4732536,0.00013671,2]
[404591087,1770317810883,-10000.01,0.00013671,2]
[404591088,1770317811331,-10000.01,0.00013671,2]
[404591089,1770317811364,-10000.01,0.00013671,2]
[404591090,1770317811415,-10000.01,0.00013671,2]
[404591091,1770317811497,-10000.01,0.00013671,2]
[404591092,1770317811614,-10000.01,0.00013671,2]
[404591093,1770317811797,-10000.01,0.00013671,2]
[404591094,1770317813197,-10000.01,0.00013671,2]
[404591095,1770317813346,-10000.01,0.00013671,2]
[404591096,1770317816256,-10000.01,0.00013671,2]
[404591097,1770317816376,-10000.01,0.00013671,2]
[404591098,1770317816484,-10000.01,0.00013671,2]
[404591099,1770317816671,-10000.01,0.00013671,2]
[404591100,1770317816829,-10000.01,0.00013671,2]
[404591101,1770317816964,-10000.01,0.00013671,2]
[404591102,1770317817118,-10000.01,0.00013671,2]
[404591104,1770317831362,-150.0,0.0001367,2]
[404591105,1770317831390,-300.0,0.0001367,2]
[404591106,1770317831450,-9100.01,0.00013671,2]
[404591107,1770317831479,-10000.01,0.00013671,2]
[404591108,1770317834473,-10000.01,0.00013671,2]
[404591109,1770317834601,-10000.01,0.00013671,2]
[404591110,1770317834777,-10000.01,0.00013671,2]
[404591111,1770317834893,-10000.01,0.00013671,2]
[404591112,1770317835039,-10000.01,0.00013671,2]
[404591113,1770317837467,-10000.01,0.00013671,2]
[404591114,1770317837618,-10000.01,0.00013671,2]
[404591115,1770317840836,-10000.01,0.00013671,2]
[404591116,1770317840870,-10000.01,0.00013671,2]
[404591117,1770317841006,-10000.01,0.00013671,2]
[404591118,1770317841186,-10000.01,0.00013671,2]
[404591119,1770317841345,-10000.01,0.00013671,2]
[404591120,1770317843471,-10000.01,0.00013671,2]
[404591121,1770317843613,-2570.5986536,0.00013671,2]
[404591122,1770317843636,-4858.8126928,0.00013671,2]
[404591123,1770317846562,-2500.0,0.00013671,2]
[404591124,1770317846591,-171.04708239,0.00013671,2]
[404591125,1770317846622,-1041.7073824,0.00013671,2]
[404591126,1770317846651,-160.2005984,0.00013671,2]
[404591127,1770317846685,-400.0,0.000137,5]
[404591128,1770317846716,-250.0,0.00013721,2]
[404591129,1770317846749,-454.09987362,0.00013761,2]
[404591130,1770317846872,-45.90012638,0.00013761,2]
[404591131,1770317846903,-1200.0,0.00013769,2]
[404591132,1770317846935,-504.0,0.0001377,2]
[404591133,1770317846966,-316.61,0.0001377,2]
[404591134,1770317846998,-600.0,0.000138,5]
[404591135,1770317847028,-800.0,0.000139,5]
[404591136,1770317847059,-316.61,0.00014044,2]
[404591137,1770317847088,-316.61,0.00014318,2]
[404591138,1770317847120,-250.0,0.00014364,2]
[404591139,1770317847150,-316.61,0.00014592,2]
[404591140,1770317847184,-167.32974724,0.000146,2]
[404591141,1770317847541,-332.67025276,0.000146,2]
[404591142,1770317847569,-500.0,0.000146,2]
[404591143,1770317847598,-569.93088227,0.000146,2]
[404591144,1770317847625,-1341.0,0.00014747,2]
[404591145,1770317847653,-255.0,0.00014791,2]
[404591146,1770317847684,-453.0,0.00014802,2]
[404591147,1770317847713,-305.0,0.00014802,2]
[404591148,1770317847750,-316.61,0.00014866,2]
[404591149,1770317881521,300.0,0.00014937,2]
[404591150,1770317887842,500.0,0.000146,2]
[404591162,1770317938980,1053.58772994,0.00013671,2]
[404591163,1770317939010,10000.01,0.00013671,2]
[404591164,1770317939035,10000.01,0.00013671,2]
[404591165,1770317939060,10000.01,0.00013671,2]
[404591166,1770317939084,10000.01,0.00013671,2]
[404591167,1770317939107,10000.01,0.00013671,2]
[404591168,1770317939136,10000.01,0.00013671,2]
[404591169,1770317939159,10000.01,0.00013671,2]
[404591170,1770317939182,10000.01,0.00013671,2]
[404591171,1770317939204,10000.01,0.00013671,2]
[404591172,1770317971331,611.36272693,0.00013656,2]
[404591177,1770318075800,4503.63210751,0.00013571,2]
[404591181,1770318093290,4562.089,0.00013398,2]
[404591182,1770318093340,322.92616556,0.00013398,2]
[404591183,1770318093366,100.40583444,0.00013398,2]
[404591184,1770318097346,1086.2639822,0.00013571,2]
[404591185,1770318107475,212.14177654,0.00013571,2]
[404591188,1770318110081,198.78568996,0.00013571,2]
[404591193,1770318210370,177.9379917,0.00013571,2]
[404591194,1770318217723,724.17598814,0.00013571,2]
[404591196,1770318240425,198.78568995,0.00013571,2]
[404591198,1770318261617,7301.51304707,0.0001357,2]
[404591199,1770318261643,10000.01,0.0001357,2]
[404591200,1770318261667,10000.01,0.0001357,2]
[404591202,1770318279065,1918.43896179,0.0002101,120]
[404591214,1770318382172,-176.80933524,0.0001347,2]
[404591215,1770318382199,-823.19066476,0.00013501,2]
[404591216,1770318383779,-798.83773924,0.00013501,2]
[404591217,1770318421422,272.23,0.000135,2]
[404591218,1770318422760,572.0678,0.0002101,120]
[404591223,1770318557473,1020617.0,0.00021,30]
[404591225,1770318628986,-150.0,0.00013569,2]
[404591226,1770318629020,-300.0,0.00013569,2]
[404591227,1770318629051,-262.0,0.00013569,2]
[404591248,1770318631987,-250.0,0.00013569,2]
[404591249,1770318631997,-1200.0,0.00013662,2]
[404591250,1770318632007,-300.0,0.00013662,2]
[404591251,1770318632018,-200.0,0.00013663,2]
[404591252,1770318632027,-200.0,0.00013663,2]
[404591253,1770318632038,-541.49095445,0.00013663,2]
[404591254,1770318632047,-500.0,0.00013663,2]
[404591255,1770318632057,-151.0,0.00013663,2]
[404591256,1770318632067,-151.0,0.00013663,2]
[404591257,1770318632077,-151.0,0.00013663,2]
[404591258,1770318632086,-151.0,0.00013663,2]
[404591259,1770318632095,-151.0,0.00013663,2]
[404591260,1770318632104,-151.0,0.00013663,2]
[404591261,1770318632113,-151.0,0.00013663,2]
[404591262,1770318632123,-151.0,0.00013663,2]
[404591263,1770318632133,-151.0,0.00013663,2]
[404591264,1770318632143,-151.0,0.00013663,2]
[404591265,1770318632152,-151.0,0.00013663,2]
[404591266,1770318632161,-500.0,0.00013663,2]
[404591267,1770318632171,-500.0,0.00013663,2]
[404591268,1770318632180,-500.0,0.00013663,2]
[404591269,1770318632190,-500.0,0.00013663,2]
[404591270,1770318632200,-500.0,0.00013663,2]
[404591271,1770318632209,-500.0,0.00013663,2]
[404591272,1770318632219,-500.0,0.00013663,2]
[404591273,1770318632228,-500.0,0.00013663,2]
[404591274,1770318632237,-500.0,0.00013663,2]
[404591275,1770318632247,-500.0,0.00013663,2]
[404591276,1770318632256,-564.32224627,0.00013663,2]
[404591277,1770318632265,-500.0,0.00013871,2]
[404591278,1770318632277,-619.26080898,0.00013871,2]
[404591279,1770318632286,-2390.23871721,0.00014211,2]
[404591280,1770318632298,-298.66128279,0.00014211,2]
[404591281,1770318632308,-46.45443998,0.00014211,2]
[404591282,1770318632399,-153.54556002,0.00014211,2]
[404591283,1770318632408,-200.0,0.00014211,2]
[404591284,1770318632418,-150.99,0.000146,2]
[404591285,1770318632428,-73.22419998,0.000146,2]
[404591286,1770318632653,-77.76580002,0.000146,2]
[404591287,1770318632663,-234.84788066,0.000146,2]
[404591288,1770318632672,-500.0,0.000146,2]
[404591289,1770318632682,-153.0,0.00014682,2]
[404591290,1770318632692,-200.0,0.00014759,2]
[404591291,1770318632702,-200.0,0.00014759,2]
[404591292,1770318632711,-250.0,0.00014852,2]
[404591293,1770318632721,-420.0,0.00014872,2]
[404591294,1770318632731,-319.34940326,0.00014926,2]
[404591295,1770318632742,-180.65059674,0.00014926,2]
[404591296,1770318632752,-193.52707338,0.00014926,2]
[404591297,1770318632762,-600.0,0.00014926,2]
[404591298,1770318632775,-600.0,0.00014926,2]
[404591299,1770318632784,-300.0,0.00014926,2]
[404591300,1770318632793,-756.48922098,0.00014926,2]
[404591301,1770318632803,-307.70460029,0.00014926,2]
[404591302,1770318632812,-367.18436696,0.00014926,2]
[404591303,1770318632821,-116.46008228,0.00014926,2]
[404591304,1770318632833,-133.53991772,0.00014926,2]
[404591305,1770318632843,-195.0,0.00014926,2]
[404591306,1770318632852,-25.35458228,0.00014938,2]
[404591307,1770318632887,-141.30541772,0.00014938,2]
[404591308,1770318632897,-123.69458228,0.00014938,2]
[404591309,1770318632909,-386.24541772,0.00014938,2]
[404591310,1770318632919,-420.0,0.00014972,2]
[404591311,1770318632929,-1435.92246172,0.00015028,2]
[404591312,1770318632960,-244.07753828,0.00015028,2]
[404591313,1770318632975,-294.0,0.0001513,2]
[404591314,1770318632984,-1000.0,0.00015148,2]
[404591315,1770318632993,-1228.0,0.00015224,2]
[404591316,1770318633003,-1181.0,0.00015255,2]
[404591317,1770318633013,-200.0,0.00015307,2]
[404591318,1770318633028,-200.0,0.00015307,2]
[404591319,1770318633038,-166.66,0.00015431,2]
[404591320,1770318633048,-1500.0,0.00015696,2]
[404591321,1770318633057,-166.66,0.00015924,2]
[404591322,1770318633067,-3471.60968638,0.00016022,2]
[404591339,1770318637844,-9330.84031362,0.00016022,2]
[404591341,1770318637854,-3240.0,0.0001603,2]
[404591343,1770318637863,-500.0,0.00016172,2]
[404591345,1770318637873,-160.0,0.00016196,2]
[404591347,1770318637882,-500.0,0.00016216,2]
[404591349,1770318637892,-150.0,0.00016216,2]
[404591351,1770318637901,-152.01739561,0.00016218,2]
[404591353,1770318637911,-1000.0,0.00016244,2]